bitfinex-derivatives/quotes_ETHF0:USTF0_20260120
["timestamp","ask_amount","ask_price","bid_price","bid_amount"]
[1768899618350,1.824,3103.6,3101.9,7.55076958]
[1768899618754,1.824,3103.6,3101.9,3.33887655]
[1768899619044,1.824,3103.6,3102.0,4.1377196]
[1768899619253,3.32640539,3104.7,3102.8,0.16131]
[1768899619442,3.32640539,3104.7,3103.2,0.1613]
[1768899619641,1.054,3104.6,3103.2,0.1613]
[1768899619844,11.22837522,3104.6,3103.2,0.1613]
[1768899620444,14.55478061,3104.6,3103.2,0.1613]
[1768899621050,3.32640539,3104.5,3103.2,0.1613]
[1768899621647,5.15140539,3104.5,3103.2,0.1613]
[1768899622044,3.32640539,3104.4,3102.4,1.7233064]
[1768899622243,3.32640539,3104.2,3102.6,0.16133]
[1768899622747,3.32640539,3103.9,3102.6,0.16133]
[1768899622948,1.825,3103.8,3102.6,0.16133]
[1768899623149,15.32578061,3103.8,3102.7,3.833]
[1768899623548,10.17437522,3103.7,3102.7,3.833]
[1768899623747,10.17437522,3103.7,3102.8,3.833]
[1768899623950,5.15140539,3103.8,3102.8,3.833]
[1768899624853,3.32640539,3103.8,3102.8,3.833]
[1768899625056,1.827,3104.1,3102.9,3.833]
[1768899625557,12.00137522,3104.1,3103.0,3.833]
[1768899625948,10.17437522,3104.0,3103.0,3.833]
[1768899626455,10.17437522,3104.0,3103.1,3.833]
[1768899626744,1.827,3104.1,3103.1,3.833]
[1768899626948,10.17437522,3104.0,3103.1,3.833]
[1768899627349,10.17437522,3103.9,3103.1,3.833]
[1768899627556,10.17437522,3104.0,3103.1,3.833]
[1768899627959,3.50868802,3103.5,3103.1,3.833]
[1768899628159,10.17437522,3103.8,3103.1,3.833]
[1768899628465,1.24708802,3109.7,3107.3,2.25870675]
[1768899628755,1.24708802,3109.7,3107.4,23.85516885]
[1768899628953,1.24708802,3109.7,3108.0,0.85774001]
[1768899629161,1.24708802,3109.7,3108.1,0.38590201]
[1768899629345,0.00369573,3109.7,3108.2,0.38590201]
[1768899629549,3.671,3109.6,3108.3,0.38590201]
[1768899629746,3.671,3109.6,3108.1,0.00227041]
[1768899629747,36.22534296,3109.5,3108.4,0.38590201]
[1768899629950,1.83,3109.4,3108.5,0.38590201]
[1768899630254,1.83,3109.4,3108.1,0.86001042]
[1768899630255,1.83,3109.4,3108.1,0.00227041]
[1768899630449,3.50868802,3109.2,3108.2,0.40637168]
[1768899630659,3.50868802,3109.2,3108.1,0.00227041]
[1768899630660,3.50868802,3109.2,3108.3,0.40637168]
[1768899630858,1.832,3109.1,3108.4,0.40637168]
[1768899631163,36.52034296,3109.1,3108.5,0.40637168]
[1768899631458,3.50868802,3108.9,3108.6,0.40637168]
[1768899631659,3.50868802,3108.9,3108.1,0.86001042]
[1768899631850,3.50868802,3108.5,3107.7,0.85774001]
[1768899632051,1.835,3108.4,3107.5,0.85774001]
[1768899632363,1.836,3108.3,3107.3,0.85774001]
[1768899632857,3.50868802,3108.2,3107.3,0.00314228]
[1768899633059,3.50868802,3107.9,3107.3,0.00314228]
[1768899633562,1.836,3108.0,3106.8,0.85774001]
[1768899634161,1.836,3108.0,3106.4,1.71522531]
[1768899634162,1.836,3108.0,3106.7,0.85774001]
[1768899634360,1.836,3108.0,3106.7,0.86012307]
[1768899634963,1.836,3108.0,3106.8,0.85774001]
[1768899635359,5.34468802,3108.0,3106.8,0.85774001]
[1768899635861,3.50868802,3107.9,3106.8,0.85774001]
[1768899636063,3.50868802,3107.4,3106.1,0.85774001]
[1768899636265,3.50868802,3107.4,3105.7,1.89595662]
[1768899636266,3.50868802,3107.4,3105.9,0.85774001]
[1768899636462,1.836,3107.3,3106.1,0.85774001]
[1768899636760,1.609,3107.2,3106.1,0.85774001]
[1768899637163,1.61283722,3107.2,3106.1,0.00415887]
[1768899638465,1.61283722,3107.2,3106.2,3.833]
[1768899638667,1.838,3107.1,3106.2,3.833]
[1768899638861,1.84183722,3107.2,3106.2,3.833]
[1768899641671,5.35052524,3107.2,3106.2,3.833]
[1768899642367,5.35052524,3107.2,3106.3,3.833]
[1768899642368,3.50868802,3107.1,3106.3,3.833]
[1768899642571,3.50868802,3106.8,3106.2,0.16447409]
[1768899642963,1.838,3106.7,3106.2,0.16447409]
[1768899643770,1.67352591,3106.7,3106.1,0.00415887]
[1768899646475,36.36186887,3106.7,3106.2,6.359]
[1768899646666,34.68834296,3106.3,3106.2,1.71649136]
[1768899646870,34.68834296,3106.3,3105.6,1.71649136]
[1768899647174,1.67352591,3106.7,3105.6,1.71649136]
[1768899647373,34.68834296,3106.5,3105.6,1.71649136]
[1768899647574,34.68834296,3106.5,3105.6,1.71938688]
[1768899647774,34.68834296,3106.4,3105.6,1.71938688]
[1768899647970,1.67352591,3106.7,3105.6,1.71938688]
[1768899648176,34.68834296,3106.5,3105.6,1.71938688]
[1768899648575,34.68834296,3106.4,3105.6,1.71938688]
[1768899648866,1.67352591,3106.7,3105.6,1.71938688]
[1768899649173,34.68834296,3106.2,3105.7,1.71649136]
[1768899649475,34.68834296,3106.1,3105.7,1.71649136]
[1768899649678,1.83464591,3106.7,3105.7,1.71649136]
[1768899650477,34.68834296,3106.0,3105.7,1.71649136]
[1768899650785,1.85,3105.9,3105.7,1.71649136]
[1768899650963,34.68834296,3105.8,3105.7,1.71649136]
[1768899651275,34.68834296,3105.8,3105.6,1.71938688]
[1768899651474,34.68834296,3105.7,3105.6,1.71938688]
[1768899651676,32.9718516,3105.7,3105.6,0.00289552]
[1768899651878,1.85,3105.9,3104.7,6.359]
[1768899652076,5.072,3105.9,3104.8,4.23664134]
[1768899652269,5.072,3105.9,3104.9,0.40364134]
[1768899652468,27.47518663,3105.9,3105.0,0.40364134]
[1768899652669,22.40318663,3105.8,3105.1,0.40364134]
[1768899652876,5.072,3105.9,3105.2,0.40364134]
[1768899653078,22.40318663,3105.4,3105.1,0.00408265]
[1768899653677,22.40318663,3105.2,3105.1,0.00408265]
[1768899653878,1.858,3105.2,3105.1,0.00408265]
[1768899654074,24.26118663,3105.2,3103.5,3.41499751]
[1768899654289,1.86,3105.1,3104.1,3.833]
[1768899654581,1.86,3105.0,3104.1,3.833]
[1768899655075,5.7849166,3104.7,3104.1,0.00406428]
[1768899655278,7.64895544,3105.0,3104.1,0.00406428]
[1768899655674,5.7849166,3104.5,3104.1,0.00406428]
[1768899655879,5.7849166,3104.5,3102.8,2.28723386]
[1768899656079,5.34969006,3105.0,3102.8,2.28723386]
[1768899656080,5.34969006,3105.0,3102.8,2.44855386]
[1768899656275,5.34969006,3105.0,3102.9,3.56685656]
[1768899656476,5.34969006,3105.0,3102.9,5.85409042]
[1768899656771,5.34969006,3105.0,3103.0,3.56685656]
[1768899656970,3.48969006,3105.0,3103.1,0.1613]
[1768899657174,3.48969006,3105.0,3103.2,3.72814656]
[1768899657378,4.522,3104.9,3103.2,3.72814656]
[1768899657781,10.3069166,3104.9,3103.2,3.72814656]
[1768899657983,5.084,3104.8,3103.2,3.72814656]
[1768899659679,5.084,3104.7,3103.2,3.72814656]
[1768899660379,6.71565122,3109.2,3106.5,3.56685656]
[1768899660569,1.618,3109.1,3106.6,3.56685656]
[1768899660775,1.618,3109.1,3106.6,4.2792912]
[1768899660776,3.48565122,3108.8,3106.6,4.2792912]
[1768899661076,3.48565122,3108.6,3106.4,0.16113]
[1768899661281,3.48565122,3108.4,3106.4,0.00245953]
[1768899661578,3.48565122,3108.0,3106.4,0.00245953]
[1768899661982,5.24753414,3107.8,3106.4,0.00245953]
[1768899662280,1.861,3108.2,3106.4,0.00245953]
[1768899662478,3.48565122,3107.9,3106.4,0.00245953]
[1768899662675,3.48565122,3107.8,3106.4,0.00245953]
[1768899662871,5.24753414,3107.8,3106.4,0.00245953]
[1768899663073,1.76188292,3107.7,3106.4,0.00245953]
[1768899664285,1.76188292,3107.2,3106.4,0.00245953]
[1768899664785,1.76188292,3107.0,3106.4,0.00245953]
[1768899664989,1.76188292,3107.0,3106.5,0.40168672]
[1768899665280,5.24753414,3106.9,3106.6,0.40168672]
[1768899665477,3.48565122,3106.9,3106.7,0.40168672]
[1768899665674,1.76188292,3106.8,3106.4,0.00245953]
[1768899665878,1.76188292,3106.6,3106.4,0.00245953]
[1768899666081,1.76188292,3106.5,3106.4,0.00245953]
[1768899666385,1.76188292,3106.8,3106.4,0.00245953]
[1768899666686,1.76188292,3107.0,3106.4,0.00245953]
[1768899667087,1.76188292,3106.8,3106.4,0.00245953]
[1768899667586,1.76188292,3106.6,3106.4,0.00245953]
[1768899667985,3.48565122,3106.9,3106.4,0.00245953]
[1768899667986,1.76188292,3106.5,3106.4,0.00245953]
[1768899668193,1.76188292,3106.6,3106.4,0.00245953]
[1768899668785,3.48565122,3106.9,3106.4,0.00245953]
[1768899668786,1.76188292,3106.5,3106.4,0.00245953]
[1768899669583,1.86,3107.2,3106.4,0.00245953]
[1768899671385,3.48565122,3107.5,3106.4,0.00245953]
[1768899671888,1.378,3107.6,3106.4,0.00245953]
[1768899673081,3.48565122,3107.5,3105.9,2.2874995]
[1768899673390,3.48565122,3107.5,3105.8,2.2874995]
[1768899673590,3.48565122,3107.5,3105.9,2.2874995]
[1768899674092,3.48565122,3107.5,3105.9,2.28984321]
[1768899674276,3.48565122,3107.5,3106.2,1.72184246]
[1768899674793,3.48565122,3107.5,3106.1,1.72184246]
[1768899676286,3.48565122,3107.5,3106.2,1.72184246]
[1768899677179,3.48565122,3107.5,3106.1,1.72184246]
[1768899678692,3.48565122,3107.3,3106.1,1.72184246]
[1768899681995,5.34565122,3107.2,3106.1,1.72184246]
[1768899682188,3.48565122,3107.1,3106.0,5.55484246]
[1768899682384,3.48565122,3107.1,3106.1,1.72184246]
[1768899683293,3.48565122,3107.1,3106.0,5.55484246]
[1768899683495,1.86,3107.2,3105.5,3.833]
[1768899683496,3.15939037,3106.8,3105.5,3.833]
[1768899683694,3.15939037,3106.8,3105.0,3.833]
[1768899683890,0.16111,3106.7,3105.1,3.833]
[1768899684092,0.16111,3106.7,3105.4,1.14976734]
[1768899684300,0.16111,3106.7,3105.3,1.14976734]
[1768899684501,0.16111,3106.7,3105.3,1.15234671]
[1768899684706,0.16113,3106.4,3104.8,3.833]
[1768899685005,0.16113,3106.4,3104.9,3.833]
[1768899685006,1.86,3106.3,3104.9,3.833]
[1768899685710,1.86,3106.3,3104.9,3.83627623]
[1768899685711,1.86277739,3106.3,3104.9,3.83627623]
[1768899686911,1.86277739,3106.3,3104.9,0.00327623]
[1768899687804,0.16115,3106.1,3104.9,0.00327623]
[1768899688006,3.222,3106.0,3104.9,0.00327623]
[1768899689011,1.86,3105.9,3104.9,0.00327623]
[1768899689213,5.082,3105.9,3104.9,0.00327623]
[1768899691709,5.082,3105.9,3104.8,3.833]
[1768899692013,5.082,3105.9,3104.3,3.833]
[1768899692313,5.082,3105.9,3104.4,3.833]
[1768899692815,5.082,3105.9,3104.4,3.83672675]
[1768899694416,0.16115,3106.0,3104.5,3.833]
[1768899694615,1.86,3105.9,3104.5,7.21525637]
[1768899694821,5.083,3105.9,3104.5,3.38225637]
[1768899695313,5.24416,3105.9,3104.4,0.00372675]
[1768899695916,0.16116,3105.8,3104.4,0.00372675]
[1768899703324,0.16117,3105.7,3104.4,0.00372675]
[1768899703720,0.16119,3105.3,3104.0,1.72840863]
[1768899704024,0.1612,3105.1,3103.6,3.51388965]
[1768899704414,0.1612,3105.1,3103.6,5.24229828]
[1768899704815,0.37083788,3105.1,3103.6,5.24468714]
[1768899705420,0.37083788,3105.1,3103.7,1.72840863]
[1768899705820,0.37083788,3105.1,3103.6,1.73079749]
[1768899707011,0.1612,3105.0,3103.6,1.73079749]
[1768899707623,0.16122,3104.8,3103.6,1.73079749]
[1768899707824,5.084,3104.7,3103.6,0.00238886]
[1768899708013,5.24522,3104.7,3103.6,0.00238886]
[1768899708214,0.16122,3104.6,3103.6,0.00238886]
[1768899708825,5.084,3104.5,3103.6,0.00238886]
[1768899711521,0.16123,3104.6,3103.6,0.00238886]
[1768899711726,2.01823,3104.6,3103.6,0.00238886]
[1768899712026,2.01823,3104.6,3103.6,0.86732879]
[1768899713324,2.01823,3104.6,3103.1,3.51388965]
[1768899713325,0.20963788,3105.1,3103.5,0.86600305]
[1768899713627,0.16127,3103.8,3102.3,3.52394624]
[1768899713816,0.16128,3103.6,3102.3,3.52394624]
[1768899714130,5.084,3103.5,3102.3,3.52394624]
[1768899714428,5.08761778,3103.5,3102.3,3.52700631]
[1768899715315,0.16129,3103.4,3102.3,0.00306007]
[1768899716221,0.16129,3103.4,3101.6,1.15429071]
[1768899716222,0.16131,3102.9,3101.6,1.15429071]
[1768899716422,4.046,3102.8,3101.3,3.52394624]
[1768899717323,4.046,3102.8,3101.3,3.52787993]
[1768899719321,0.16132,3102.7,3101.3,3.52787993]
[1768899719521,3.672,3102.6,3101.3,3.52787993]
[1768899720127,0.16132,3102.7,3101.3,3.52787993]
[1768899720426,3.896,3102.6,3101.3,3.52787993]
[1768899721126,4.05733,3102.6,3101.3,3.52787993]
[1768899721628,3.896,3102.6,3101.3,0.00393369]
[1768899722231,0.00361778,3103.5,3100.4,3.52394624]
[1768899722232,0.16135,3102.1,3100.4,3.52394624]
[1768899722433,5.24736,3102.0,3100.4,3.52394624]
[1768899722630,0.16137,3101.9,3100.4,3.52394624]
[1768899723125,0.16137,3101.9,3100.4,3.52789569]
[1768899723728,3.226,3102.2,3100.4,3.52789569]
[1768899724833,3.226,3102.3,3100.4,3.52789569]
[1768899725629,0.16133,3102.6,3100.4,3.68933569]
[1768899725830,0.16134,3102.4,3100.6,3.52394624]
[1768899726832,0.16136,3102.1,3100.6,3.52394624]
[1768899727035,0.16136,3101.9,3100.6,3.52394624]
[1768899727722,0.19627109,3102.5,3100.6,3.52394624]
[1768899727918,0.16138,3101.6,3100.4,0.00394945]
[1768899728124,3.38738,3101.6,3100.4,0.00394945]
[1768899728327,0.16138,3101.6,3100.4,3.52789569]
[1768899729134,0.16141,3101.1,3099.6,3.52394624]
[1768899730234,0.16509741,3101.1,3099.6,3.52801158]
[1768899730942,0.00368741,3101.1,3099.6,3.52801158]
[1768899735741,0.00368741,3101.1,3099.8,3.52394624]
[1768899739134,0.00368741,3101.1,3099.8,4.67823695]
[1768899739334,0.00368741,3101.1,3099.9,3.52394624]
[1768899740237,3.228,3102.2,3100.2,3.52394624]
[1768899740438,3.228,3102.2,3100.5,3.52394624]
[1768899741239,3.23145294,3102.2,3100.6,3.52394624]
[1768899742149,3.23145294,3102.2,3100.7,3.52394624]
[1768899743345,3.27829492,3102.2,3100.7,1.15429071]
[1768899743541,0.04684198,3102.1,3100.3,4.5829469]
[1768899743943,0.16138,3101.5,3100.3,4.5829469]
[1768899745146,0.16138,3101.5,3100.4,1.15429071]
[1768899745549,0.16138,3101.5,3100.3,1.15429071]
[1768899746250,0.16138,3101.5,3100.4,1.15429071]
[1768899749253,0.16138,3101.5,3100.5,1.15429071]
[1768899750244,0.16138,3101.5,3100.5,4.5829469]
[1768899750443,0.16138,3101.5,3100.6,4.5829469]
[1768899752548,0.16136,3102.0,3100.6,4.5829469]
[1768899752747,5.088,3101.9,3100.8,3.42865619]
[1768899752954,0.16136,3102.0,3100.8,3.42865619]
[1768899753254,0.16136,3102.0,3100.9,3.42865619]
[1768899753453,0.16136,3102.0,3100.9,4.5829469]
[1768899753642,0.16136,3102.0,3101.0,3.42865619]
[1768899754748,5.088,3102.1,3101.1,3.42865619]
[1768899756858,0.00345294,3102.2,3101.1,3.42865619]
[1768899757152,0.00345294,3102.2,3101.2,3.42865619]
[1768899758247,5.088,3102.8,3101.5,3.42865619]
[1768899758447,0.16132,3102.8,3101.5,3.42865619]
[1768899758661,0.16132,3102.8,3101.5,4.5829469]
[1768899758851,0.16132,3102.8,3101.6,3.42865619]
[1768899759158,0.16454868,3102.8,3101.6,3.42865619]
[1768899759850,0.00322868,3102.8,3101.6,3.42865619]
[1768899760056,0.00322868,3102.8,3101.9,3.42865619]
[1768899760255,0.00322868,3102.8,3101.9,3.43199414]
[1768899761449,0.16132,3102.7,3101.4,4.5829469]
[1768899761649,0.16133,3102.6,3101.4,3.42865619]
[1768899761849,0.16133,3102.5,3101.1,1.15429071]
[1768899762050,0.16135,3102.2,3101.0,3.42865619]
[1768899762359,0.16135,3102.2,3100.9,1.15429071]
[1768899762559,0.16135,3102.1,3101.0,0.00306539]
[1768899765859,5.087,3102.1,3101.0,0.00306539]
[1768899766059,5.087,3102.1,3100.6,3.42865619]
[1768899766258,0.16137,3101.8,3100.6,3.42865619]
[1768899766456,0.16137,3101.8,3100.5,1.15429071]
[1768899767164,0.16137,3101.8,3100.5,1.15731961]
[1768899768270,0.16138,3101.6,3100.5,0.0030289]
[1768899770967,1.859,3101.5,3100.5,3.3160517]
[1768899772563,1.859,3101.5,3100.5,4.47034241]
[1768899773066,1.859,3101.5,3100.5,3.3160517]
[1768899781275,1.859,3101.4,3100.5,3.3160517]
[1768899784873,1.2225987,3101.0,3100.3,1.15429071]
[1768899785069,1.2225987,3101.0,3100.2,1.15429071]
[1768899785975,1.2225987,3101.0,3100.2,3.50613682]
[1768899786675,1.2225987,3101.3,3100.2,3.50613682]
[1768899787173,1.2225987,3101.0,3100.2,3.50613682]
[1768899789076,1.859,3101.4,3099.9,1.46692736]
[1768899789276,1.2225987,3100.0,3099.0,4.05240552]
[1768899789474,1.2225987,3100.0,3098.8,2.2874995]
[1768899789675,1.2225987,3100.3,3098.8,2.2874995]
[1768899789977,1.2225987,3100.3,3098.9,3.833]
[1768899790176,1.22514425,3100.3,3098.9,3.83533035]
[1768899790679,1.22514425,3100.3,3098.9,0.00233035]
[1768899791384,1.22514425,3100.3,3099.0,3.50260955]
[1768899793781,1.2225987,3100.0,3099.0,3.50260955]
[1768899794092,0.00254555,3100.3,3099.0,3.50260955]
[1768899794275,1.2225987,3100.2,3099.0,3.50260955]
[1768899795276,1.2225987,3099.6,3098.9,0.00233035]
[1768899795586,1.2225987,3099.5,3098.6,3.50260955]
[1768899796593,1.2225987,3099.5,3098.6,3.5048917]
[1768899796982,0.20720108,3099.9,3098.6,3.5048917]
[1768899797182,1.859,3100.2,3098.6,3.5048917]
[1768899797688,0.16149,3099.6,3098.6,0.00228215]
[1768899797884,0.16149,3099.5,3098.6,0.00228215]
[1768899799192,5.088,3099.4,3098.6,0.00228215]
[1768899803498,5.088,3099.4,3098.1,3.50260955]
[1768899804597,5.088,3099.4,3098.1,3.50566801]
[1768899806692,0.16152,3099.0,3097.3,3.4600288]
[1768899806896,5.3758279,3099.2,3097.3,3.4600288]
[1768899806897,0.16153,3098.8,3097.3,3.4600288]
[1768899807689,0.16153,3098.8,3097.3,3.46355664]
[1768899809996,1.859,3098.7,3097.3,3.46355664]
[1768899812394,1.859,3098.7,3097.4,7.2930288]
[1768899812594,1.859,3098.7,3097.5,3.4600288]
[1768899813603,2.02053,3098.8,3097.5,3.4600288]
[1768899814107,0.1615,3099.4,3097.5,3.4600288]
[1768899814301,5.2505,3099.3,3097.5,3.4600288]
[1768899814698,1.859,3099.2,3097.5,3.4600288]
[1768899815307,0.16154,3098.7,3097.5,3.4600288]
[1768899818493,2.02054,3098.7,3097.5,3.4600288]
[1768899818701,0.1615,3099.3,3097.5,3.4600288]
[1768899818900,5.09,3099.2,3097.5,3.4600288]
[1768899819109,0.1615,3099.3,3097.5,3.4600288]
[1768899823506,0.1615,3099.3,3097.6,3.66390905]
[1768899824305,0.1615,3099.3,3097.6,5.39455087]
[1768899824501,0.1615,3099.3,3097.7,3.66390905]
[1768899825102,3.231,3099.8,3097.9,3.66390905]
[1768899825307,0.74987661,3099.7,3098.1,3.66390905]
[1768899825609,0.16147,3099.9,3098.1,5.39455087]
[1768899825905,0.16147,3099.9,3098.2,3.66390905]
[1768899826308,0.16147,3099.9,3098.2,5.39455087]
[1768899826507,0.16147,3099.9,3098.3,7.49690905]
[1768899826698,0.16147,3099.9,3098.4,3.66390905]
[1768899829407,0.21026276,3100.2,3098.4,3.66390905]
[1768899829605,0.74977651,3100.1,3098.4,3.66390905]
[1768899829809,2.06652973,3100.3,3098.4,3.66390905]
[1768899830004,0.74984244,3100.2,3098.4,5.39455087]
[1768899830214,2.06652973,3100.3,3098.5,5.39455087]
[1768899830410,0.74995617,3100.2,3098.6,3.66390905]
[1768899830622,0.16145,3100.2,3098.6,3.66390905]
[1768899832607,1.858,3100.1,3098.6,3.66390905]
[1768899835208,0.16145,3100.2,3098.6,3.66390905]
[1768899835413,1.858,3100.1,3098.6,3.66390905]
[1768899838913,0.16145,3100.2,3098.6,3.66390905]
[1768899840414,0.16145,3100.2,3098.6,5.39455087]
[1768899840723,0.16145,3100.2,3098.6,3.66390905]
[1768899844625,0.16145,3100.2,3098.8,3.62199529]
[1768899848712,0.00254555,3100.3,3099.0,3.62199529]
[1768899848910,0.00254555,3100.3,3099.2,3.62199529]
[1768899849111,0.16399555,3100.3,3099.1,3.833]
[1768899849331,0.16145,3100.2,3099.1,3.833]
[1768899849720,0.00254555,3100.3,3098.9,3.833]
[1768899849920,0.74857433,3100.2,3098.9,3.833]
[1768899850226,0.00254555,3100.3,3099.0,3.833]
[1768899850527,0.74875533,3100.2,3099.0,3.833]
[1768899850824,0.16148,3099.8,3099.0,3.833]
[1768899853425,0.16148,3099.8,3098.9,3.833]
[1768899853722,0.16148,3099.8,3098.9,7.45499529]
[1768899855129,0.16148,3099.8,3098.9,3.62199529]
[1768899859730,0.16148,3099.8,3098.9,5.35263711]
[1768899860637,0.16148,3099.8,3098.9,3.62199529]
[1768899861436,1.857,3100.2,3099.1,3.62199529]
[1768899861638,1.857,3100.2,3099.3,3.62199529]
[1768899865139,1.857,3100.2,3099.3,7.45499529]
[1768899866246,1.857,3100.2,3098.6,2.85937438]
[1768899866247,0.76063578,3100.1,3098.9,7.44245096]
[1768899866447,1.857,3100.2,3098.9,7.44245096]
[1768899866448,0.76063578,3100.0,3098.9,7.44245096]
[1768899866650,1.857,3100.2,3098.9,7.44245096]
[1768899866951,0.7606223,3100.1,3098.9,7.44245096]
[1768899867141,0.7606223,3100.0,3098.9,7.44245096]
[1768899867341,1.857,3100.2,3098.9,7.44245096]
[1768899867542,0.16146,3100.0,3098.9,7.44245096]
[1768899869753,0.16146,3100.0,3099.0,3.60945096]
[1768899870843,0.00254555,3100.3,3099.0,3.60945096]
[1768899871151,2.61848974,3100.2,3099.2,3.60945096]
[1768899871344,0.76148974,3100.1,3099.2,3.60945096]
[1768899872747,0.00254555,3100.3,3099.2,3.60945096]
[1768899872954,0.00254555,3100.3,3099.4,3.60945096]
[1768899876948,0.00254555,3100.3,3099.5,3.60945096]
[1768899877147,0.00254555,3100.3,3099.5,3.61228234]
[1768899881056,1.856,3100.7,3099.5,3.61228234]
[1768899882153,1.85929987,3100.7,3099.5,3.61228234]
[1768899882755,1.85929987,3100.7,3099.6,7.2719529]
[1768899883355,1.85929987,3100.7,3099.7,3.4389529]
[1768899883562,1.85929987,3100.7,3099.7,7.2719529]
[1768899886866,1.22294679,3100.5,3099.7,7.2719529]
[1768899888672,1.22294679,3100.5,3099.8,3.833]
[1768899890372,1.22294679,3099.9,3099.0,3.819]
[1768899890674,0.16144,3100.3,3098.5,3.819]
[1768899890872,0.75978287,3100.2,3098.5,3.819]
[1768899891174,1.22294679,3099.7,3098.5,3.82297985]
[1768899891370,1.22294679,3099.7,3098.6,3.819]
[1768899892370,1.22294679,3099.7,3098.7,3.4389529]
[1768899893069,0.16144,3100.3,3098.7,3.4389529]
[1768899893373,1.22294679,3100.0,3098.7,3.4389529]
[1768899894475,1.22294679,3100.0,3098.9,3.32712015]
[1768899894676,1.22294679,3100.1,3098.9,3.32712015]
[1768899894878,3.07894679,3100.1,3098.9,3.32712015]
[1768899896371,1.22294679,3100.1,3098.9,3.32712015]
[1768899896575,3.07894679,3100.1,3098.9,3.32712015]
[1768899896972,1.38438679,3100.3,3098.9,3.32712015]
[1768899897170,2.01744,3100.3,3099.0,3.32712015]
[1768899897477,1.856,3100.3,3099.0,3.32712015]
[1768899900275,1.856,3100.3,3098.9,1.22294679]
[1768899900276,1.856,3100.3,3099.2,3.32712015]
[1768899900481,0.16470987,3100.7,3099.3,3.32712015]
[1768899900679,0.00329987,3100.7,3099.6,3.32712015]
[1768899900884,1.85829987,3100.7,3099.6,3.32712015]
[1768899902575,1.22294679,3100.5,3099.6,3.32712015]
[1768899904776,1.85829987,3100.7,3099.6,3.32712015]
[1768899904978,3.08124666,3100.7,3099.6,3.32712015]
[1768899906291,3.08124666,3100.7,3099.7,3.819]
[1768899908687,3.08124666,3100.7,3098.8,6.359]
[1768899908688,1.22294679,3099.8,3098.8,3.32712015]
[1768899909693,1.22294679,3100.1,3098.8,3.32712015]
[1768899910192,0.16143,3100.3,3098.8,3.32712015]
[1768899910391,1.22294679,3100.1,3098.8,3.32712015]
[1768899911394,0.16143,3100.3,3098.8,3.32712015]
[1768899911787,0.16143,3100.3,3098.9,3.32712015]
[1768899911991,1.855,3100.2,3098.9,3.32712015]
[1768899912597,1.855,3100.2,3099.0,3.32712015]
[1768899914094,1.855,3100.4,3099.0,3.32712015]
[1768899914297,1.855,3100.4,3099.3,3.32712015]
[1768899914895,1.855,3100.5,3099.3,3.32712015]
[1768899915097,0.00329987,3100.7,3099.3,3.32712015]
[1768899915291,1.85829987,3100.7,3099.3,3.32712015]
[1768899918693,0.76394795,3100.6,3099.3,3.32712015]
[1768899918893,1.85829987,3100.7,3099.3,3.32712015]
[1768899919094,0.76394791,3100.6,3099.3,3.32712015]
[1768899919399,1.85829987,3100.7,3099.3,3.32712015]
[1768899919593,0.76407013,3100.6,3099.3,3.32712015]
[1768899919794,1.85829987,3100.7,3099.3,3.32712015]
[1768899919989,1.22294679,3100.2,3099.3,3.32712015]
[1768899920191,0.76413742,3100.6,3098.0,3.224]
[1768899920192,1.22294679,3099.9,3098.9,5.64743855]
[1768899921292,1.22294679,3100.2,3098.9,5.64743855]
[1768899921700,1.22294679,3100.2,3099.0,3.32712015]
[1768899923308,1.85829987,3100.7,3099.8,3.44240624]
[1768899923309,0.00329987,3100.7,3099.8,3.44240624]
[1768899923705,0.00329987,3100.7,3099.4,3.44240624]
[1768899924703,0.00329987,3100.7,3099.6,4.66535303]
[1768899926708,0.00329987,3100.7,3099.6,3.44240624]
[1768899927406,0.00329987,3100.7,3099.7,3.44240624]
[1768899927707,1.854,3101.5,3100.0,3.44240624]
[1768899927905,0.76777292,3101.4,3100.0,3.44240624]
[1768899928105,0.3833136,3101.7,3100.3,3.44240624]
[1768899928407,2.2373136,3101.7,3100.3,3.44240624]
[1768899928597,2.24044177,3101.7,3100.3,3.44240624]
[1768899929401,1.22294679,3101.5,3100.3,3.44240624]
[1768899929607,1.22294679,3101.2,3099.8,3.44240624]
[1768899929805,1.22294679,3100.9,3099.8,3.44240624]
[1768899931002,3.49438756,3101.5,3099.8,3.44240624]
[1768899931202,1.22294679,3101.1,3099.8,3.44240624]
[1768899933009,3.49438756,3101.5,3099.8,3.44240624]
[1768899935406,3.33301756,3101.1,3099.5,2.3203184]
[1768899935609,3.49441756,3100.9,3099.3,3.44240624]
[1768899936410,3.33301756,3101.4,3099.4,3.44240624]
[1768899936609,0.77179149,3101.3,3099.4,3.44240624]
[1768899936817,0.77179149,3101.2,3099.4,3.44240624]
[1768899937019,3.49438756,3101.4,3099.4,3.44240624]
[1768899937211,0.7717706,3101.3,3099.4,3.44240624]
[1768899937412,5.34838756,3101.4,3099.5,3.44240624]
[1768899937616,0.77166944,3101.3,3099.5,3.44240624]
[1768899937804,5.34838756,3101.4,3099.5,3.44240624]
[1768899938005,0.7716097,3101.3,3099.5,3.44240624]
[1768899938222,5.34838756,3101.4,3099.5,3.44240624]
[1768899938516,0.77157976,3101.3,3099.5,3.44240624]
[1768899938817,5.34838756,3101.4,3099.5,3.44240624]
[1768899939120,0.77157745,3101.3,3099.5,3.44240624]
[1768899939320,5.34838756,3101.4,3099.5,3.44240624]
[1768899939512,0.77165372,3101.3,3099.5,3.44240624]
[1768899939714,5.34838756,3101.4,3099.5,3.44240624]
[1768899939914,0.77176323,3101.3,3099.5,3.44240624]
[1768899940117,3.49438756,3101.4,3099.5,3.44240624]
[1768899940317,0.93322809,3101.3,3099.5,3.44240624]
[1768899940523,0.16138,3101.3,3099.5,3.44240624]
[1768899941423,0.16139,3101.2,3099.6,5.76272464]
[1768899941814,3.49440756,3101.2,3099.6,5.76272464]
[1768899942822,3.33301756,3101.2,3099.6,5.76272464]
[1768899943013,0.16141,3100.8,3099.3,2.3203184]
[1768899943715,0.16141,3100.8,3099.3,5.66630099]
[1768899944016,0.16141,3100.8,3099.4,3.34598259]
[1768899944722,0.16141,3100.8,3099.0,2.85937438]
[1768899944723,0.16142,3100.6,3099.1,2.3203184]
[1768899945023,3.61413669,3100.6,3099.0,5.66630099]
[1768899946617,3.61413669,3100.6,3099.1,2.3203184]
[1768899950323,1.22245338,3100.5,3099.1,2.3203184]